bitfinex/quotes_ETHUSD_20250529
["timestamp","ask_amount","ask_price","bid_price","bid_amount"]
[1748529639410,3.77803172,2646.9,2645.9,1.4758]
[1748529639630,5.1000474,2646.8,2645.9,1.4758]
[1748529639811,0.35487169,2646.7,2645.9,1.4758]
[1748529640124,3.77865403,2646.5,2645.7,1.485]
[1748529640321,5.03150218,2646.6,2645.5,1.485]
[1748529640523,5.03150218,2646.6,2645.5,1.87135607]
[1748529640524,1.25569897,2646.5,2645.5,1.87135607]
[1748529640818,0.35484875,2646.4,2645.5,1.87135607]
[1748529641020,0.90085022,2646.5,2645.5,1.87135607]
[1748529641219,0.35482746,2646.4,2645.5,1.87135607]
[1748529641518,0.90085022,2646.5,2645.5,1.87135607]
[1748529641725,0.94820363,2646.4,2645.5,1.87135607]
[1748529641910,0.35497216,2646.3,2645.5,1.87135607]
[1748529642102,0.35497216,2646.2,2645.5,1.87135607]
[1748529642299,1.24787913,2646.5,2645.5,1.87135607]
[1748529642622,0.35505645,2646.4,2645.5,1.87135607]
[1748529642792,0.35505645,2646.3,2645.5,1.87135607]
[1748529643124,0.35505645,2646.2,2645.5,1.87135607]
[1748529643311,0.90085022,2646.5,2645.5,1.87135607]
[1748529643618,0.55,2646.5,2645.5,1.87135607]
[1748529643823,3.77878034,2646.4,2645.5,1.87135607]
[1748529644033,3.77891732,2646.3,2645.5,1.87135607]
[1748529644386,3.77873451,2646.4,2645.5,0.38635607]
[1748529644586,0.99356683,2646.5,2645.1,0.02]
[1748529644587,18.03559,2646.3,2645.3,1.4567]
[1748529644826,3.77906749,2646.2,2645.3,1.4567]
[1748529645329,3.77909731,2646.2,2645.3,1.4567]
[1748529645629,0.05,2646.2,2645.3,1.4067]
[1748529645831,0.59035448,2646.2,2645.3,1.4067]
[1748529646032,1.253,2646.1,2645.3,1.4067]
[1748529646390,0.59035448,2646.2,2645.3,1.77529827]
[1748529646635,1.57465668,2646.4,2645.3,1.77529827]
[1748529646636,1.253,2646.1,2645.3,1.77529827]
[1748529646848,1.62465668,2646.4,2645.3,0.36859827]
[1748529647146,1.253,2646.3,2645.2,1.90410071]
[1748529647639,0.34664466,2646.5,2645.2,1.90410071]
[1748529647946,0.34664466,2646.5,2645.3,0.19241007]
[1748529648146,0.34664466,2646.5,2645.6,1.90410071]
[1748529648508,0.34664466,2646.5,2645.7,1.4692]
[1748529648916,0.34664466,2646.5,2645.7,8.0]
[1748529649219,0.34664466,2646.5,2646.0,1.536]
[1748529651515,0.05,2646.3,2645.4,1.4145]
[1748529651730,2.36697647,2646.3,2645.4,1.4145]
[1748529652559,0.05,2646.3,2645.4,1.4145]
[1748529653066,0.05,2646.3,2644.8,2.56071197]
[1748529653265,0.05,2646.3,2644.7,0.38227368]
[1748529653425,0.05,2646.3,2644.6,1.90410071]
[1748529653825,0.05,2646.3,2644.6,1.85410071]
[1748529654073,2.13665332,2646.3,2644.7,0.6321396]
[1748529654274,2.13665332,2646.3,2644.6,1.85410071]
[1748529654425,5.9155847,2646.3,2644.6,1.85410071]
[1748529654771,2.13665332,2646.3,2644.6,1.85410071]
[1748529654953,4.1265362,2646.2,2644.6,1.85410071]
[1748529655155,8.0,2646.0,2644.6,1.85410071]
[1748529655340,9.253,2646.1,2644.6,1.85410071]
[1748529655550,0.35518543,2646.0,2644.6,1.85410071]
[1748529655741,0.35518543,2645.9,2644.5,0.19729529]
[1748529655953,1.253,2646.1,2644.5,0.56629256]
[1748529656245,1.65837777,2646.0,2644.6,1.4769]
[1748529656578,0.35517075,2645.9,2644.6,1.4769]
[1748529656783,1.30320702,2646.0,2644.6,1.4769]
[1748529656947,0.35519812,2645.9,2644.6,1.4769]
[1748529657285,0.29114051,2645.9,2644.6,1.4769]
[1748529657489,1.54414051,2645.9,2644.6,1.4769]
[1748529660364,0.05,2646.3,2644.7,0.55]
[1748529660543,1.254,2646.3,2645.0,1.4689]
[1748529660749,9.254,2646.3,2645.0,1.4689]
[1748529660996,1.4188,2645.9,2645.0,1.4689]
[1748529661555,12.13418312,2646.2,2645.0,1.4689]
[1748529661764,8.0,2646.0,2645.0,1.4689]
[1748529661968,2.46951659,2646.1,2645.0,1.4689]
[1748529662700,11.77934074,2646.0,2645.0,1.4689]
[1748529662889,11.77930502,2646.0,2645.0,1.4689]
[1748529663100,8.0,2645.9,2645.0,1.4689]
[1748529663269,12.527,2645.7,2644.6,1.4906]
[1748529663466,8.55,2645.5,2644.6,1.4906]
[1748529663664,8.0,2645.2,2644.6,1.4906]
[1748529663913,6.61299,2645.1,2644.6,1.4906]
[1748529664208,2.708299,2645.0,2644.6,1.4906]
[1748529664367,1.247,2645.0,2644.6,1.4906]
[1748529666297,18.694322,2644.9,2644.5,0.37079033]
[1748529666505,9.247,2645.0,2644.9,0.00527643]
[1748529666670,20.434922,2645.0,2644.9,0.00527643]
[1748529666999,16.6558932,2645.0,2644.9,0.00527643]
[1748529667200,15.1633892,2645.0,2644.9,0.00527643]
[1748529667705,32.81460753,2645.0,2644.9,0.00527643]
[1748529668402,35.03302186,2645.0,2644.9,0.00527643]
[1748529668586,33.78602186,2645.0,2644.9,0.00527643]
[1748529668786,26.72530353,2645.0,2644.9,0.00527643]
[1748529668988,35.86585387,2645.0,2644.9,0.00527643]
[1748529669190,39.29902186,2645.0,2644.9,0.00527643]
[1748529669806,39.64657241,2645.0,2644.9,0.00527643]
[1748529670013,39.29902186,2645.0,2644.9,0.00527643]
[1748529670517,35.32202186,2645.0,2644.9,0.00527643]
[1748529670707,39.29902186,2645.0,2644.9,0.00527643]
[1748529671012,39.33652186,2645.0,2644.9,0.00527643]
[1748529671183,26.06580353,2645.0,2644.9,0.00527643]
[1748529671387,31.09352186,2645.0,2644.9,0.00527643]
[1748529671584,23.09352186,2645.0,2644.9,0.00527643]
[1748529672003,23.44061868,2645.0,2644.9,0.00527643]
[1748529672199,23.09352186,2645.0,2644.9,0.00527643]
[1748529672600,3.78113497,2644.8,2644.1,0.02]
[1748529672803,25.51397182,2644.7,2644.1,0.02]
[1748529673001,17.137241,2644.6,2644.1,0.02]
[1748529673826,0.34859,2644.5,2644.1,0.02]
[1748529674018,10.232208,2644.4,2644.1,0.02]
[1748529674219,17.240305,2644.6,2644.1,0.02]
[1748529674416,8.324772,2644.3,2644.1,0.02]
[1748529674745,1.79906468,2644.5,2644.1,0.02]
[1748529675046,4.298351,2644.4,2644.1,0.02]
[1748529675252,11.375014,2644.6,2644.1,0.02]
[1748529675544,5.01534182,2644.7,2644.1,0.02]
[1748529675721,0.34867964,2644.6,2644.1,0.02]
[1748529675888,0.53640215,2644.6,2644.1,0.02]
[1748529676315,1.247,2644.5,2644.1,0.02]
[1748529676513,0.53640215,2644.6,2644.2,1.5925]
[1748529676514,1.247,2644.6,2644.2,1.5925]
[1748529677595,6.067768,2644.5,2644.2,1.5925]
[1748529677931,0.7314768,2644.4,2644.2,1.5925]
[1748529678089,3.7389108,2644.4,2644.2,1.5925]
[1748529678290,1.247,2644.6,2644.2,1.5925]
[1748529679300,13.074218,2644.5,2644.2,1.5925]
[1748529679503,13.074218,2644.5,2644.1,0.02]
[1748529680639,14.553318,2644.5,2644.1,0.02]
[1748529680845,18.8008088,2644.4,2644.1,0.02]
[1748529681019,11.792584,2644.3,2644.1,0.02]
[1748529681559,1.5800318,2644.4,2644.2,1.5925]
[1748529681716,1.247,2644.5,2644.2,1.5925]
[1748529682307,10.06841433,2645.0,2644.2,1.5925]
[1748529682540,1.247,2644.9,2644.2,1.5925]
[1748529684452,1.247,2645.2,2644.2,1.5925]
[1748529684653,1.70581179,2645.2,2644.2,1.5925]
[1748529686406,0.3554419,2645.1,2644.2,1.5925]
[1748529686642,1.70581179,2645.2,2644.2,1.5925]
[1748529686867,0.3556401,2645.1,2644.2,1.5925]
[1748529687040,0.3556401,2645.0,2644.2,1.5925]
[1748529687244,1.70581179,2645.2,2644.2,1.5925]
[1748529687553,0.35564315,2645.1,2644.2,1.5925]
[1748529687730,0.35564315,2645.0,2644.2,1.5925]
[1748529687931,0.35587339,2644.9,2644.2,1.5925]
[1748529688149,0.20614549,2645.1,2644.2,1.5925]
[1748529688465,0.70527556,2645.0,2644.2,1.5925]
[1748529688668,0.35588469,2644.9,2644.2,1.5925]
[1748529688965,0.35588469,2644.8,2644.2,1.5925]
[1748529689145,3.98679263,2645.1,2644.2,1.5925]
[1748529689358,1.08149195,2645.0,2644.2,1.5925]
[1748529689656,0.35623854,2644.9,2644.2,1.5925]
[1748529689863,22.66418754,2644.8,2644.2,1.5925]
[1748529690065,20.62572897,2644.7,2644.2,1.5925]
[1748529690362,11.38175497,2644.6,2644.1,0.02]
[1748529690520,1.87253523,2644.5,2644.1,0.02]
[1748529690716,6.13967094,2644.8,2644.1,0.02]
[1748529690717,0.35623854,2644.4,2644.2,1.4946]
[1748529690962,8.44484143,2644.8,2644.2,1.4946]
[1748529691159,1.60355567,2644.7,2644.2,1.4946]
[1748529691365,0.35655567,2644.6,2644.2,1.4946]
[1748529691547,0.35655567,2644.5,2644.2,1.4946]
[1748529691747,0.35655567,2644.4,2644.2,1.4946]
[1748529691949,1.247,2644.7,2644.2,1.4946]
[1748529692135,1.36061895,2644.6,2644.2,1.4946]
[1748529692336,0.35659866,2644.5,2644.1,0.02]
[1748529692657,0.35659866,2644.4,2644.1,0.02]
[1748529692966,0.35659866,2644.3,2644.1,0.02]
[1748529693124,1.00402573,2644.6,2644.1,0.02]
[1748529693329,0.62632739,2644.5,2644.1,0.02]
[1748529693540,0.35664998,2644.4,2644.1,0.02]
[1748529693829,0.35664998,2644.3,2644.1,0.02]
[1748529694054,1.51667741,2644.5,2644.1,0.02]
[1748529694229,0.3566013,2644.4,2644.1,0.02]
[1748529694429,1.51667741,2644.5,2644.1,0.02]
[1748529694640,0.60868419,2644.4,2644.1,0.02]
[1748529694936,0.25207031,2644.4,2644.1,0.02]
[1748529695152,0.3566176,2644.3,2644.1,0.02]
[1748529695356,0.25207031,2644.4,2644.1,0.02]
[1748529695532,0.35663405,2644.3,2644.1,0.02]
[1748529695771,0.25207031,2644.4,2644.1,0.02]
[1748529696074,0.35664604,2644.3,2644.1,0.02]
[1748529696403,0.25207031,2644.4,2644.1,0.02]
[1748529696713,0.35661918,2644.3,2644.1,0.02]
[1748529696877,0.25207031,2644.4,2644.1,0.02]
[1748529697259,3.9606833,2644.3,2644.1,0.02]
[1748529697482,0.42127536,2644.2,2644.1,0.02]
[1748529697687,0.25207031,2644.4,2644.1,0.02]
[1748529698873,4.1158432,2644.3,2644.1,0.02]
[1748529699061,9.371244,2644.2,2644.1,0.02]
[1748529699272,0.25207031,2644.4,2644.1,0.02]
[1748529699476,2.80901539,2644.3,2644.1,0.02]
[1748529699799,0.30610857,2644.2,2644.1,0.02]
[1748529700012,0.25207031,2644.4,2644.1,0.02]
[1748529700502,17.50769022,2644.3,2644.1,0.02]
[1748529700703,9.16994,2644.2,2644.1,0.02]
[1748529700890,15.96497579,2644.2,2644.1,0.02]
[1748529701063,19.8712834,2644.2,2644.1,0.02]
[1748529701268,19.9876534,2644.2,2644.1,0.02]
[1748529701493,15.3907574,2644.2,2644.1,0.02]
[1748529701983,1.9784614,2644.2,2644.1,1.5688]
[1748529702183,0.25207031,2644.4,2644.1,1.5688]
[1748529702383,0.35693362,2644.3,2644.1,1.5688]
[1748529702610,0.25207031,2644.4,2644.1,1.5688]
[1748529702907,0.35693863,2644.3,2644.1,1.5688]
[1748529703092,0.25207031,2644.4,2644.1,1.5688]
[1748529703292,0.35696864,2644.3,2644.1,1.5688]
[1748529703464,0.25207031,2644.4,2644.1,1.5688]
[1748529703663,0.35725014,2644.3,2644.1,1.5688]
[1748529703908,1.24,2644.5,2644.1,1.5688]
[1748529704069,1.24,2644.5,2644.1,1.76353558]
[1748529705281,1.24,2644.5,2643.6,4.254]
[1748529706605,1.93496839,2645.0,2643.6,4.254]
[1748529706805,1.59738393,2644.9,2643.6,4.254]
[1748529707106,0.66595232,2644.8,2643.7,0.4254]
[1748529707305,0.35734249,2644.7,2643.7,0.4254]
[1748529707506,0.30856839,2644.8,2643.7,0.4254]
[1748529707926,0.35739296,2644.7,2643.7,0.36903816]
[1748529708127,0.35739296,2644.6,2643.7,0.36903816]
[1748529708302,0.35738461,2644.5,2643.6,1.533]
[1748529708615,0.30856839,2644.8,2643.5,0.37926392]
[1748529708815,0.35736211,2644.7,2643.4,1.44814332]
[1748529709006,0.35736211,2644.6,2643.4,1.44814332]
[1748529709202,0.3573587,2644.5,2643.4,1.44814332]
[1748529709422,0.3573587,2644.4,2643.4,1.44814332]
[1748529709606,8.0,2644.5,2643.4,1.44814332]
[1748529709930,0.35735732,2644.4,2643.4,1.44814332]
[1748529710134,4.251,2644.6,2643.4,1.44814332]
[1748529710284,0.93996188,2644.5,2643.4,1.44814332]
[1748529710479,0.35738264,2644.4,2643.4,1.44814332]
[1748529710680,0.58257924,2644.5,2643.4,1.44814332]
[1748529710885,0.35740917,2644.4,2643.4,1.44814332]
[1748529711085,0.58257924,2644.5,2643.4,1.44814332]
[1748529711283,0.84073299,2644.4,2643.4,1.44814332]
[1748529711518,0.48335792,2644.4,2643.5,1.5453]
[1748529711721,0.35730694,2644.3,2643.5,1.5453]
[1748529711943,0.48335792,2644.4,2643.6,1.5453]
[1748529712312,1.57479235,2644.7,2643.6,1.5453]
[1748529712520,0.3570118,2644.6,2643.6,1.5453]
[1748529712827,0.3570118,2644.5,2643.6,1.5453]
[1748529713027,1.57479235,2644.7,2643.6,1.5453]
[1748529713331,0.35706157,2644.6,2643.6,1.5453]
[1748529713495,0.35711417,2644.5,2643.6,1.5453]
[1748529713827,0.35711417,2644.4,2643.6,1.5453]
[1748529714028,0.35716895,2644.3,2643.6,1.5453]
[1748529714186,2.60418539,2644.6,2643.6,1.5453]
[1748529714391,0.66219563,2644.5,2643.6,1.5453]
[1748529714603,0.35713782,2644.4,2643.6,1.5453]
[1748529714828,0.35713782,2644.3,2643.6,1.5453]
[1748529715009,0.30505781,2644.5,2643.6,1.5453]
[1748529715210,0.35719857,2644.4,2643.6,1.5453]
[1748529715413,0.35719857,2644.3,2643.6,1.5453]
[1748529715713,0.35725862,2644.2,2643.6,1.5453]
[1748529715913,0.3572441,2644.1,2643.6,1.5453]
[1748529716113,0.32664418,2644.4,2643.6,1.5453]
[1748529716434,0.35721921,2644.3,2643.6,1.5453]
[1748529716638,0.35721921,2644.2,2643.6,1.5453]
[1748529716807,0.35721921,2644.1,2643.6,1.5453]
[1748529717010,0.35721921,2644.0,2643.6,1.5453]
[1748529717206,1.4577,2644.2,2643.6,1.5453]
[1748529717418,0.3572208,2644.1,2643.6,1.5453]
[1748529717617,0.3572811,2644.0,2643.6,1.5453]
[1748529717837,0.60629208,2644.1,2643.6,1.5453]
[1748529718137,14.30333118,2644.0,2643.4,3.31693516]
[1748529718340,0.35723118,2643.9,2643.4,3.31693516]
[1748529718499,0.35723118,2643.8,2643.4,3.31693516]
[1748529718700,1.84629208,2644.1,2643.4,3.31693516]
[1748529718905,0.73218598,2644.0,2643.4,3.31693516]
[1748529719106,0.35712663,2643.9,2643.4,3.31693516]
[1748529719443,0.35712663,2643.8,2643.4,3.31693516]
[1748529719643,0.37505935,2644.0,2643.4,3.31693516]
[1748529719805,0.57919642,2643.9,2643.4,3.31693516]
[1748529720002,0.35706128,2643.8,2643.4,3.31693516]
[1748529720205,0.22213514,2643.9,2643.4,3.31693516]
[1748529720407,0.35707521,2643.8,2643.4,3.31693516]
[1748529720607,0.22213514,2643.9,2643.4,3.31693516]
[1748529720816,0.35714978,2643.8,2643.4,1.82623516]
[1748529721016,0.22213514,2643.9,2643.4,1.82623516]
[1748529721217,0.35719591,2643.8,2643.4,1.82623516]
[1748529721413,0.22213514,2643.9,2643.4,1.82623516]
[1748529721657,0.3572972,2643.8,2643.4,1.82623516]
[1748529721859,0.22213514,2643.9,2643.4,1.82623516]
[1748529722165,1.513,2643.7,2643.4,1.82623516]
[1748529722317,0.35719752,2643.6,2643.4,1.44814332]
[1748529722521,1.83163514,2643.9,2643.4,1.44814332]
[1748529722724,0.62254684,2643.8,2643.4,1.44814332]
[1748529722923,0.3572279,2643.7,2643.4,1.44814332]
[1748529723158,4.51131894,2643.8,2643.4,1.44814332]
[1748529723360,0.26531894,2643.8,2643.5,1.5721]
[1748529723560,1.46213514,2643.9,2643.5,1.5721]
[1748529723766,0.35725022,2643.8,2643.5,1.5721]
[1748529723967,1.46213514,2643.9,2643.5,1.5721]
[1748529724165,0.35724165,2643.8,2643.5,1.5721]
[1748529724374,12.717723,2643.7,2643.4,1.81877004]
[1748529724531,0.60831945,2643.8,2643.4,1.81877004]
[1748529724725,0.35719381,2643.7,2643.4,1.81877004]
[1748529724965,0.60831945,2643.8,2642.5,0.55]
[1748529725169,0.35720258,2643.7,2642.4,0.37327432]
[1748529725327,0.35720258,2643.7,2642.4,4.245]
[1748529725328,9.00704546,2643.7,2642.4,4.245]
[1748529725528,9.00704546,2643.7,2642.5,0.55]
[1748529726256,0.60831945,2643.8,2642.5,0.55]
[1748529726569,1.88226103,2644.6,2642.4,6.53330137]
[1748529726570,0.44632385,2644.7,2643.7,0.55]
[1748529726780,0.44632385,2645.1,2644.2,0.55]
[1748529727008,0.34817789,2645.2,2644.2,0.55]
[1748529727274,0.34817789,2645.2,2644.3,1.54209151]
[1748529727438,0.02,2644.9,2644.3,0.85973713]
[1748529727640,0.02,2644.9,2644.3,0.62741638]
[1748529727839,0.02,2644.9,2644.4,1.5804]
[1748529737063,0.02,2644.9,2644.5,1.5568]
[1748529740311,0.02,2644.9,2644.3,0.38602287]
[1748529740612,1.5214,2644.8,2643.9,1.5516]
[1748529741025,2.7534,2644.7,2643.5,1.5516]
[1748529741177,0.27534,2644.6,2643.5,1.5516]
[1748529742007,0.27534,2644.6,2643.5,1.92571442]
[1748529742821,0.02,2644.9,2643.5,1.92571442]
[1748529742822,0.02,2644.9,2643.7,1.5185]
[1748529742990,1.252,2644.9,2643.7,1.5185]
[1748529744995,1.5769,2644.8,2643.7,1.5185]
[1748529746582,9.5769,2644.8,2643.0,4.79]
[1748529746824,9.5884,2644.6,2643.1,0.55]
[1748529747019,1.75884,2644.5,2643.2,0.51705307]
[1748529747191,1.5884,2644.4,2642.7,0.19742469]
[1748529748139,1.5884,2644.4,2643.1,1.90410071]
[1748529748284,1.5884,2644.4,2643.2,0.55]
[1748529748486,1.5884,2644.4,2643.3,0.24541007]
[1748529749585,1.5884,2644.4,2643.4,1.4632]
[1748529750846,1.5884,2644.4,2643.4,1.8391114]
[1748529754545,1.5884,2644.4,2643.4,0.3759114]
[1748529754768,1.5884,2644.4,2643.2,1.5686]
[1748529755618,5.5654,2644.4,2643.2,1.5686]
[1748529755910,0.55654,2644.3,2643.2,1.5686]
[1748529756064,1.5884,2644.4,2643.2,1.5686]
[1748529756720,1.489,2644.0,2643.2,0.37706306]
[1748529756852,1.489,2644.0,2641.3,1.228]
[1748529756853,1.489,2643.8,2642.5,1.5906]
[1748529757052,1.489,2643.6,2642.5,1.5906]
[1748529757452,1.5088,2643.4,2642.5,0.37952135]
[1748529757654,1.5244,2643.3,2641.3,1.90410071]
[1748529757854,1.5244,2643.3,2641.5,0.55]
[1748529758052,12.3329313,2643.5,2641.5,0.55]
[1748529758053,1.5244,2643.1,2641.5,0.93700966]
[1748529758249,1.6253,2642.9,2641.6,0.66269806]
[1748529758496,1.6253,2642.9,2641.6,0.85343243]
[1748529758670,1.6253,2642.9,2641.6,5.19209208]
[1748529758861,1.6253,2642.9,2641.7,4.33860163]
[1748529759066,1.6253,2642.9,2641.8,0.55]
[1748529759289,1.91063,2642.9,2641.9,0.91031805]
[1748529759658,1.6059,2643.9,2642.8,0.55]
[1748529760263,1.6259,2643.9,2642.8,0.55]
[1748529760464,1.6259,2643.9,2642.7,4.33390458]
[1748529760659,1.6259,2643.9,2642.8,0.4093]
[1748529760905,1.6259,2643.9,2642.9,8.55]
[1748529761059,1.6259,2643.9,2643.0,1.31941449]
[1748529761487,1.6259,2643.9,2642.9,0.55]
[1748529762299,1.6259,2643.9,2642.9,8.55]
[1748529763001,1.6259,2643.9,2642.9,0.55]
[1748529764339,1.6259,2643.9,2643.3,1.90410071]
[1748529764540,1.6259,2643.9,2643.7,1.90410071]
[1748529764541,0.02,2643.9,2643.7,1.90410071]
[1748529764807,1.5486,2644.7,2643.8,0.19041007]
[1748529765011,1.5486,2644.7,2643.4,1.41036496]
[1748529765364,1.5486,2644.7,2643.4,0.9593]
[1748529765808,1.5486,2644.7,2643.4,0.4093]
[1748529767833,1.5486,2644.7,2643.5,0.55]
[1748529768425,1.5486,2644.7,2643.6,1.90410071]
[1748529768624,1.74038303,2644.7,2643.7,1.04541007]
[1748529769224,1.74038303,2644.7,2643.7,9.04541007]
[1748529769427,1.5486,2644.7,2644.0,2.31340071]
[1748529769627,0.34923029,2644.8,2644.0,2.31340071]
[1748529769628,0.34923029,2644.8,2644.5,0.4093]
[1748529769800,0.34932718,2645.4,2644.8,1.90410071]
[1748529770001,0.34932718,2645.4,2645.0,0.4093]
[1748529770201,0.34932718,2645.4,2645.2,5.68443819]
[1748529770401,0.02,2645.9,2645.3,0.55]
[1748529770617,0.02,2645.9,2645.6,1.90410071]
[1748529770806,0.02,2645.9,2645.6,2.31340071]
[1748529771004,0.02,2645.9,2645.7,9.03134007]
[1748529772103,0.02,2645.9,2645.3,0.37698037]
[1748529772302,0.02,2645.9,2645.1,1.6363]
[1748529772746,0.02,2645.9,2645.3,1.90410071]
[1748529772962,0.02,2645.9,2645.7,1.90410071]
[1748529773412,0.02,2645.9,2645.4,0.55]
[1748529773614,0.02,2645.9,2645.5,1.20608035]
[1748529775233,0.02,2645.9,2645.7,1.90410071]
[1748529775760,0.02,2645.9,2645.5,9.20608035]
[1748529775907,0.02,2645.9,2645.5,1.20608035]
[1748529776107,1.6005,2645.8,2645.3,0.3797028]
[1748529776327,1.6005,2645.8,2644.8,2.0957536]
[1748529776914,1.6005,2645.8,2644.8,10.47188294]
[1748529777605,0.55,2646.6,2644.8,10.47188294]
[1748529777915,8.0205,2646.6,2644.8,10.47188294]
[1748529778110,0.80205,2646.5,2644.9,1.08811829]
[1748529778449,8.0,2646.3,2644.8,0.37612934]
[1748529778632,8.0,2646.3,2644.7,2.31340071]
[1748529779409,4.32907641,2646.2,2644.7,0.37405107]
[1748529779629,4.32907641,2646.2,2644.1,1.5664]
[1748529779630,0.55,2646.0,2644.1,4.69750071]
[1748529780173,0.55,2646.0,2644.2,8.0]
[1748529780678,3.77960932,2645.8,2644.1,3.49050071]
[1748529780815,13.20990764,2646.1,2644.1,3.49050071]
[1748529781168,3.77995804,2645.6,2644.1,0.39558206]
[1748529781311,5.457,2645.5,2644.1,0.39558206]
[1748529782017,1.227,2645.5,2644.4,0.55]
[1748529782248,1.32099076,2646.0,2644.7,0.55]
[1748529782449,1.227,2646.2,2644.8,0.245498]
[1748529782652,5.00605786,2646.2,2644.4,0.55]
[1748529783014,1.227,2646.2,2644.4,0.55]
[1748529783215,1.227,2646.2,2644.3,1.5633]
[1748529783216,0.55,2646.1,2644.3,1.5633]
[1748529783516,1.592,2646.0,2644.3,1.5633]
[1748529783717,12.32921583,2646.1,2644.4,0.55]
[1748529783718,1.592,2645.8,2644.4,0.55]
[1748529783931,1.592,2645.8,2644.8,0.55]
[1748529785160,1.592,2645.8,2644.7,1.90498003]
[1748529786168,1.592,2645.8,2644.8,0.55]
[1748529786374,1.592,2645.8,2644.9,1.655]
[1748529788858,1.592,2645.8,2645.0,0.55]
[1748529789062,1.592,2645.8,2645.1,0.2205]
[1748529789929,7.4705,2646.3,2645.1,0.2205]
[1748529790133,1.5796,2646.2,2644.9,1.655]
[1748529790578,3.977,2646.1,2644.9,1.655]
[1748529790880,1.5796,2646.2,2644.9,1.655]
[1748529794569,11.24945841,2646.3,2644.9,1.655]
[1748529794570,1.5755,2646.0,2644.9,1.655]
[1748529795190,1.5755,2646.0,2645.1,1.90498003]
[1748529795379,1.5755,2646.0,2645.2,0.190498]
[1748529795577,1.5755,2646.0,2644.9,1.655]
[1748529798414,0.35766994,2645.9,2644.9,1.655]
[1748529798559,1.5755,2646.0,2644.9,1.655]
[1748529798759,0.35768413,2645.9,2644.9,1.655]
[1748529799108,1.5755,2646.0,2644.9,1.655]
[1748529799400,0.35784182,2645.9,2644.9,1.655]
[1748529799570,0.19333418,2645.9,2644.9,1.655]
[1748529800270,1.5755,2646.0,2644.9,1.655]
[1748529800470,0.35794523,2645.9,2644.9,1.655]
[1748529800683,1.5755,2646.0,2644.9,1.655]
[1748529800882,0.35796187,2645.9,2644.9,1.655]
[1748529801228,1.5755,2646.0,2644.9,1.655]
[1748529801412,0.35807631,2645.9,2644.9,1.655]
[1748529801581,0.35807631,2645.8,2644.9,1.655]
[1748529801781,0.19335763,2645.9,2644.9,1.655]
[1748529802410,0.35808293,2645.8,2644.9,1.655]
[1748529802635,0.19335763,2645.9,2644.9,1.655]
[1748529802803,0.35809437,2645.8,2644.9,1.655]
[1748529803004,0.2126952,2645.8,2644.9,2.6205]
[1748529803217,1.5755,2646.0,2644.9,2.6205]
[1748529803420,0.35820457,2645.9,2645.0,1.5226]
[1748529803623,1.5755,2646.0,2645.0,1.5226]
[1748529803932,0.3581821,2645.9,2645.0,1.5226]
[1748529804160,1.5755,2646.0,2645.0,1.5226]
[1748529804293,0.35829091,2645.9,2645.1,0.24881]
[1748529804494,0.35829091,2645.8,2645.1,0.24881]
[1748529804710,1.5755,2646.0,2645.1,0.24881]
[1748529804995,0.35837226,2645.9,2645.0,1.5226]
[1748529805222,0.35836953,2645.8,2645.0,1.5226]
[1748529805422,1.5755,2646.0,2645.0,1.5226]
[1748529805638,0.35859147,2645.9,2645.0,1.5226]
[1748529805929,0.35859147,2645.8,2645.0,1.96182149]
[1748529806131,1.5755,2646.0,2645.0,1.96182149]
[1748529806332,0.35864942,2645.9,2645.0,1.96182149]
[1748529806637,0.35864942,2645.8,2645.0,1.96182149]
[1748529806795,1.5755,2646.0,2645.0,1.96182149]
[1748529807135,0.35866379,2645.9,2645.1,0.48314364]
[1748529807433,0.35866379,2645.8,2645.1,0.48314364]
[1748529807645,1.77788118,2646.0,2645.1,0.48314364]
[1748529807797,0.35863677,2645.9,2645.1,0.48314364]
[1748529807996,0.35863677,2645.8,2645.1,0.48314364]
[1748529808302,1.77788118,2646.0,2645.2,0.20057436]
[1748529808649,0.35868326,2645.9,2645.1,0.48314364]
[1748529808797,0.35868326,2645.8,2645.1,0.48314364]
[1748529808997,0.358664,2645.7,2645.0,1.5226]
[1748529809204,1.77788118,2646.0,2645.0,1.5226]
[1748529809503,0.35867322,2645.9,2645.0,1.5226]
[1748529809702,0.35867322,2645.8,2645.0,1.5226]
[1748529809933,0.35867322,2645.7,2645.0,1.5226]
[1748529810241,5.99988118,2646.0,2645.0,1.5226]
[1748529810415,1.00353843,2645.9,2645.0,1.5226]
[1748529810615,0.35871616,2645.8,2645.0,1.5226]
[1748529810943,0.35871616,2645.7,2645.0,1.5226]
[1748529811116,0.64482227,2645.9,2645.0,1.5226]
[1748529811312,0.35872952,2645.8,2645.0,1.5226]
[1748529811625,0.35872952,2645.7,2645.0,1.5226]
[1748529811811,0.35872952,2645.6,2645.0,1.5226]
[1748529812013,0.7003433,2645.8,2645.0,1.5226]
[1748529812212,0.35902693,2645.7,2645.0,1.5226]
[1748529812429,1.5327,2645.7,2644.5,0.55]
[1748529812656,0.58233454,2645.6,2644.6,1.78563]
[1748529812831,0.22330433,2645.6,2644.6,1.78563]
[1748529815331,1.546,2645.4,2644.6,1.5733]
[1748529815744,0.358926,2645.3,2644.6,1.5733]
[1748529815943,0.358926,2645.2,2644.6,1.5733]
[1748529816147,1.546,2645.4,2644.6,1.5733]
[1748529816568,0.35868461,2645.3,2644.6,1.5733]
[1748529816740,0.35868461,2645.2,2644.6,1.5733]
[1748529816932,0.19046846,2645.3,2644.6,1.5733]
[1748529819748,2.00116832,2645.7,2644.6,1.5733]
[1748529820092,0.35818376,2645.6,2644.6,1.5733]
[1748529820407,0.35818376,2645.5,2644.9,1.5828]
[1748529820565,1.5533,2646.1,2644.9,1.5828]
[1748529820764,0.35832119,2646.0,2644.9,1.5828]
[1748529821063,1.5533,2646.1,2645.1,1.6643]
[1748529821271,0.35830246,2646.0,2645.1,1.6643]
[1748529821463,1.5533,2646.1,2645.1,1.6643]